[Event "Vezerkepzo GM May 2022"]
[Site "Budapest"]
[Date "2022.05.19"]
[Round "2.3"]
[White "Pacher, Milan"]
[Black "Fule, Simon"]
[Result "1-0"]
[ECO "C55"]
[WhiteElo "2394"]
[BlackElo "2297"]
[Annotator "TA"]
[PlyCount "113"]
[EventDate "2022.05.18"]
[EventType "tourn"]
[EventCountry "HUN"]
[SourceTitle "playchess.com"]
[Source "ChessBase"]
[SourceQuality "1"]
[TimeControl "5400+30"]

{[%evp 9,113,3,25,21,39,20,23,0,15,-51,-51,-51,-54,-46,-50,-62,0,0,20,-20,-10,-47,0,0,-12,0,0,-45,-10,-66,61,49,81,78,78,81,112,119,141,134,139,43,87,77,93,89,87,61,69,73,380,279,395,387,389,374,383,381,400,289,487,296,293,291,296,296,296,296,266,277,296,281,524,339,524,524,524,524,524,520,506,465,436,341,436,330,1181,893,1340,1340,1208,989,3014,2606,29965,1908,1936,980,29970,29971,29972,29973,29969,29967,6747,6645]} 1. e4 {[%emt 0:09:58]} e5 {[%emt 0:00:08]} 2. Nf3 {[%emt 0:00:06]} Nc6 {[%emt 0:00:05]} 3. Bc4 {[%emt 0:00:05]} Nf6 {[%emt 0:00:19]} 4. d3 {[%emt 0:00:02]} h6 {[%emt 0:00:18]} 5. Nc3 {[%emt 0:00:44]} d6 {[%emt 0:01:08]} 6. a3 {[%emt 0:00:06] C55: Two Knights: 4 d3, 4 d4 exd4 5 e5 and Max Lange Attack.} g6 {[%emt 0:15:24]} 7. O-O {[%emt 0:02:18]} Bg7 {[%emt 0:02:52] [#]} 8. Ne1 $146 {[%emt 0:00:36] White has an edge.} ({Predecessor:} 8. h3 O-O 9. Be3 Be6 10. Bxe6 fxe6 11. Ne2 Nh5 12. c3 g5 13. d4 Qe8 14. Nh2 Qg6 15. Qb3 exd4 16. cxd4 Qxe4 17. Qxb7 {0-1 (38) Asadli,V (2578)-Kozak,A (2517) Chess.com INT 2021}) 8... g5 {[%emt 0:10:21]} 9. g3 {[%emt 0:01:49]} ({Better is} 9. Nf3 $11) 9... Bh3 $15 {[%emt 0:06:17]} 10. Ng2 {[%emt 0:00:04]} Qd7 {[%emt 0:09:23]} 11. f3 {[%emt 0:04:20]} O-O-O {[%emt 0:18:14]} (11... Nd4 {looks sharper.} 12. Be3 O-O-O 13. Qd2 Kb8) 12. b4 {[%emt 0:03:18]} Be6 {[%emt 0:07:06]} (12... Nd4 $15) 13. b5 {[%emt 0:02:36]} Ne7 {[%emt 0:01:41]} (13... Nd4 $5 {[%cal Rd6d5]}) 14. a4 {[%emt 0:00:31]} d5 {[%emt 0:01:01]} 15. exd5 {[%emt 0:02:21]} Bxd5 {[%emt 0:08:35]} (15... Nfxd5 $15 16. Ne4 Bh3) 16. Nxd5 {[%emt 0:00:46]} Nfxd5 {[%emt 0:00:06]} 17. Bb2 {[%emt 0:01:35]} Nf5 {[%emt 0:03:02]} 18. Re1 {[%emt 0:03:40] Inhibits Nfe3.} Rhe8 {[%emt 0:00:47]} 19. a5 {[%emt 0:00:52]} ({White should try} 19. Kh1 $11) 19... Nd4 {[%emt 0:05:17]} (19... Bf8 $1 $15 20. g4 (20. Rxe5 $2 Bc5+ 21. d4 Nc3 $19) (20. Bxe5 Bb4 $17) 20... Bc5+ 21. Kh1 Nde3 22. Nxe3 Nxe3) 20. a6 $14 {[%emt 0:03:45]} b6 {[%emt 0:01:01]} 21. Bxd4 {[%emt 0:00:35]} exd4 {[%emt 0:00:13]} 22. Rxe8 $1 {[%emt 0:00:21]} Rxe8 {[%emt 0:00:20]} 23. f4 $1 {[%emt 0:00:14]} Rd8 {[%emt 0:05:24]} 24. fxg5 {[%emt 0:03:05]} hxg5 {[%emt 0:00:18]} 25. Qd2 {[%emt 0:04:39]} (25. Qh5 $16) 25... f6 {[%emt 0:01:48]} 26. Qf2 {[%emt 0:03:12]} c6 {[%emt 0:01:21]} 27. bxc6 {[%emt 0:01:02]} ({Don't go for} 27. Qxd4 $2 f5 28. Qf2 Bxa1 $19) 27... Qxc6 {[%emt 0:00:02]} 28. Re1 {[%emt 0:00:15] Black must now prevent Qf5+.} b5 {[%emt 0:00:52]} 29. Qf5+ $1 {[%emt 0:05:47]} Rd7 $2 {[%emt 0:00:58][%mdl 8192] This costs Black the game.} (29... Qd7 $16 {is more resistant.} 30. Qxd7+ Rxd7 31. Bxb5 Re7) 30. Bb3 {[%emt 0:02:02]} Kc7 {[%emt 0:00:24]} (30... Nc7 $142 31. Bf7 (31. Re7 Kd8 $14) 31... Qxc2) 31. Re6 $18 {[%emt 0:02:59]} Qc5 {[%emt 0:00:10]} 32. h4 {[%emt 0:00:43]} Bf8 {[%emt 0:00:35]} 33. hxg5 {[%emt 0:02:17] Chess con chili.} fxg5 {[%emt 0:00:03]} 34. Qe5+ {[%emt 0:00:27]} Rd6 $2 {[%emt 0:00:57]} (34... Bd6 35. Qxd5 Qxd5 36. Bxd5 Bxg3) 35. Rxd6 {[%emt 0:00:33]} ({But not} 35. Re8 Bh6 36. Re6 Kc6 $18) 35... Bxd6 {[%emt 0:00:01]} 36. Qxd5 {[%emt 0:00:09] Threatens to win with Qb7+.} Qxd5 {[%emt 0:00:04]} 37. Bxd5 {[%emt 0:00:04]} Bxg3 {[%emt 0:00:06]} 38. Kf1 {[%emt 0:00:15]} Kb6 {[%emt 0:00:47] [#]} 39. Bb7 {[%emt 0:00:23]} Kc5 {[%emt 0:01:21]} 40. Ne1 {[%emt 0:00:40]} Bf4 $2 {[%emt 0:01:02]} (40... g4 41. Bc8 Kb6) 41. Ke2 {[%emt 0:00:44]} Kb4 {[%emt 0:00:28]} (41... g4 $142 42. Bc8 Kb6) 42. Nf3 {[%emt 0:01:08]} Kc3 {[%emt 0:00:16]} 43. Kd1 {[%emt 0:00:03]} g4 {[%emt 0:00:37]} 44. Ng1 {[%emt 0:00:04] aiming for Ne2+.} Be5 {[%emt 0:00:27]} 45. Ne2+ {[%emt 0:00:38]} Kb4 {[%emt 0:00:42]} 46. Nc1 {[%emt 0:00:30]} Kc5 {[%emt 0:00:31]} 47. Nb3+ {[%emt 0:00:43]} Kb6 $2 {[%emt 0:00:06]} (47... Kb4 48. Nc1 Ka4) 48. Ke2 {[%emt 0:00:13]} b4 {[%emt 0:00:42]} 49. Nd2 {[%emt 0:00:38] Threatening mate with Nc4+.} Kb5 {[%emt 0:00:17]} 50. Ne4 {[%emt 0:00:38]} Ka4 {[%emt 0:00:53]} 51. Bd5 {[%emt 0:00:47] Hoping for Bc4.} Ka3 {[%emt 0:00:33]} 52. Nf2 {[%emt 0:01:29]} (52. Bb3 $142 Kb2 53. Nf2 g3 54. Ne4 Bf4 55. Kf3 g2 56. Kxg2 Bc7 57. Kf3) 52... g3 {[%emt 0:00:09]} 53. Ne4 {[%emt 0:00:45] Bb3 would kill now.} Kb2 {[%emt 0:00:52] [#]} 54. Bb3 $1 {[%emt 0:00:06]} Kc1 {[%emt 0:00:09]} 55. Kf3 {[%emt 0:00:07]} g2 {[%emt 0:00:23]} 56. Kxg2 {[%emt 0:00:02]} Kd1 {[%emt 0:00:05]} 57. Kf3 {[%emt 0:00:15] Weighted Error Value: White=0.29 (precise) /Black=0.50} 1-0

[Event "Vezerkepzo GM May 2022"]
[Site "Budapest"]
[Date "2022.05.19"]
[Round "2.5"]
[White "Karavade, Eesha"]
[Black "Mazur, Stefan"]
[Result "0-1"]
[ECO "C28"]
[WhiteElo "2348"]
[BlackElo "2423"]
[Annotator "TA"]
[PlyCount "80"]
[EventDate "2022.05.18"]
[EventType "tourn"]
[EventCountry "HUN"]
[SourceTitle "playchess.com"]
[Source "ChessBase"]
[SourceQuality "1"]
[TimeControl "5400+30"]

{[%evp 13,80,12,17,19,29,18,25,34,53,50,51,56,57,21,65,62,58,59,56,36,35,26,31,36,34,12,19,29,96,0,93,66,84,31,19,15,15,15,15,15,15,15,15,0,22,15,15,15,15,0,70,50,83,0,0,0,0,0,0,0,48,54,154,-5,0,-18,-14,-48,0]} 1. e4 {[%emt 0:00:06]} e5 {[%emt 0:07:09]} 2. Bc4 {[%emt 0:00:52]} Nf6 {[%emt 0:00:09]} 3. Nc3 {[%emt 0:00:31]} Nc6 {[%emt 0:04:01]} 4. d3 {[%emt 0:00:26]} Na5 {[%emt 0:00:18]} 5. Nge2 {[%emt 0:01:50]} Nxc4 {[%emt 0:01:06]} 6. dxc4 {[%emt 0:00:07]} d6 {[%emt 0:00:12]} 7. O-O {[%emt 0:00:47]} Be6 {[%emt 0:00:52]} 8. b3 {[%emt 0:00:46] C28: Vienna Game: 2...Nf6 3 Bc4 Nc6.} g6 {[%emt 0:05:15]} 9. f4 {[%emt 0:37:55]} exf4 {[%emt 0:00:43]} 10. Bxf4 {[%emt 0:07:49] White has an edge.} Bg7 {[%emt 0:02:31]} 11. Qd2 {[%emt 0:05:41] [#]} Ng4 $146 {[%emt 0:01:27] Inhibits Bh6.} ({Predecessor:} 11... h6 12. Nd4 Qd7 13. e5 Nh5 14. exd6 Nxf4 15. Qxf4 cxd6 16. Rad1 O-O 17. Ne4 Bg4 {0-1 (33) Arapovic,V (2380)-Psakhis,L (2500) Sarajevo 1981}) 12. h3 {[%emt 0:05:19]} Ne5 {[%emt 0:00:10]} 13. Bh6 {[%emt 0:01:36]} (13. Rad1 {looks sharper.} O-O 14. Bh6 Bxh6 15. Qxh6 Qe7 16. Nd4) 13... O-O {[%emt 0:02:36]} 14. Bxg7 {[%emt 0:00:28]} Kxg7 {[%emt 0:00:07]} 15. Nf4 {[%emt 0:00:04]} Qd7 {[%emt 0:03:29]} 16. Rae1 {[%emt 0:04:27]} f6 {[%emt 0:05:55]} 17. a4 {[%emt 0:03:18]} Bg8 {[%emt 0:07:49]} 18. Rf2 {[%emt 0:03:20]} Rae8 {[%emt 0:05:15]} 19. Ref1 {[%emt 0:00:19]} Qd8 {[%emt 0:05:53]} 20. Qd4 {[%emt 0:08:27]} Nc6 {[%emt 0:03:58]} (20... a5 $11) 21. Qd2 {[%emt 0:00:10]} (21. Qe3 $16) 21... Be6 {[%emt 0:03:38]} (21... Ne5 $11 {remains equal.}) 22. Ncd5 $16 {[%emt 0:03:37]} Rf7 {[%emt 0:09:11]} 23. Qc3 {[%emt 0:06:21]} (23. Qe3 $16) 23... Ne5 $14 {[%emt 0:00:36]} 24. Qg3 {[%emt 0:00:06][%cal Od5f6] [#] Strongly threatening Nxf6!} Kh8 {[%emt 0:02:04]} 25. Ne3 {[%emt 0:00:37]} Bc8 {[%emt 0:04:03]} 26. Nfd5 {[%emt 0:01:04]} Ref8 $1 {[%emt 0:00:36]} 27. Qh4 {[%emt 0:04:28][%cal Rf2f6]} Kg7 {[%emt 0:00:17]} 28. Qg3 {[%emt 0:00:09]} c6 {[%emt 0:04:09]} 29. Nf4 {[%emt 0:00:02]} Kh8 $1 {[%emt 0:00:48]} 30. Rd1 {[%emt 0:00:42]} Qe7 {[%emt 0:03:00]} 31. Nd3 {[%emt 0:02:55]} f5 {[%emt 0:06:23]} (31... Re8 $11) 32. exf5 $1 {[%emt 0:00:43]} gxf5 {[%emt 0:00:43][%cal Bg6f5,Bf5f4][%mdl 32] [#] Threatens to win with ...Nxd3.} 33. Rdf1 {[%emt 0:01:04]} (33. Nf1 $1 $16) 33... Rg7 $11 {[%emt 0:02:57]} 34. Qf4 {[%emt 0:00:06]} Ng6 $1 $36 {[%emt 0:00:07][%mdl 2048] White is under pressure.} 35. Qh6 {[%emt 0:00:03][%cal Re3f5]} f4 {[%emt 0:00:27]} 36. Nd1 {[%emt 0:01:18]} Qe4 {[%emt 0:10:01]} (36... Bd7 $11) 37. Nc3 $14 {[%emt 0:00:47]} Qe3 {[%emt 0:00:06]} (37... Qe7 $1 $14) 38. Nd1 $2 {[%emt 0:00:12]} (38. Ne2 $16 {[%cal Re2f4]} Rf6 39. Re1 (39. Ndxf4 Nxf4 40. Qxf6 Nxe2+ 41. Kh2 Ng3 $11)) 38... Qd4 $11 {[%emt 0:00:24]} 39. Kh1 {[%emt 0:00:12][%cal Rd3f4]} Rgf7 {[%emt 0:00:12]} 40. Rf3 {[%emt 0:00:47]} a5 {[%emt 0:01:20][%mdl 32768] Weighted Error Value: White=0.20 (precise) /Black=0.18 (very precise) . Loss on time!?} (40... b6 $15) 0-1

[Event "Vezerkepzo GM May 2022"]
[Site "Budapest"]
[Date "2022.05.20"]
[Round "3.1"]
[White "Mazur, Stefan"]
[Black "Turzo, Attila"]
[Result "1-0"]
[ECO "B56"]
[WhiteElo "2423"]
[BlackElo "2338"]
[Annotator "TA"]
[PlyCount "36"]
[EventDate "2022.05.18"]
[EventType "tourn"]
[EventCountry "HUN"]
[SourceTitle "playchess.com"]
[Source "ChessBase"]
[SourceQuality "1"]
[TimeControl "5400+30"]

{[%evp 12,36,10,0,0,0,0,7,1,15,10,0,0,-6,1,0,29,20,82,16,10,19,20,17,26,10,38]} 1. e4 {[%emt 0:04:16]} c5 {[%emt 0:00:09]} 2. Nf3 {[%emt 0:01:29]} Nc6 {[%emt 0:00:09]} 3. d4 {[%emt 0:01:07]} cxd4 {[%emt 0:00:07]} 4. Nxd4 {[%emt 0:00:04]} Nf6 {[%emt 0:00:06]} 5. Nc3 {[%emt 0:00:43]} d6 {[%emt 0:00:04]} 6. Nxc6 {[%emt 0:03:01]} bxc6 {[%emt 0:00:03]} 7. e5 {[%emt 0:00:07]} Nd7 {[%emt 0:07:04] B56: Classical Sicilian: Unusual Lines.} 8. exd6 {[%emt 0:01:22]} exd6 {[%emt 0:00:02]} 9. Bf4 {[%emt 0:01:37]} Nf6 {[%emt 0:02:41] [#]} 10. Bd3 $146 {[%emt 0:03:33]} (10. Qd2 {is interesting.} d5 11. Bd3 Bd6 12. O-O) ({Predecessor:} 10. Bg5 d5 11. Bd3 Bb4 12. O-O O-O 13. h3 h6 14. Bh4 g5 15. Bg3 Bd6 16. Qd2 Nh5 17. Bxd6 Qxd6 18. Rfe1 Be6 19. Ne2 Rab8 20. c4 Qb4 21. Qxb4 Rxb4 22. cxd5 Bxd5 {0-1 (51) Romero,P-Rey,E Montevideo 2001}) 10... Be7 {[%emt 0:03:35]} (10... d5 {feels hotter.} 11. O-O Bd6 12. Re1+ Be6) 11. O-O {[%emt 0:04:38]} O-O {[%emt 0:01:49]} 12. Ne2 {[%emt 0:07:04]} d5 {[%emt 0:09:50]} 13. c4 {[%emt 0:01:08]} Be6 {[%emt 0:13:17]} 14. Nd4 {[%emt 0:03:42]} Qd7 {[%emt 0:06:34]} (14... Bd7 $11 {remains equal.}) 15. Nxe6 {[%emt 0:09:42] White is more active.} (15. Rc1 $16) 15... fxe6 $11 {[%emt 0:00:30]} 16. Qe2 {[%emt 0:00:10]} Bd6 {[%emt 0:00:53]} 17. Be5 {[%emt 0:09:23]} Rae8 {[%emt 0:02:42]} 18. Rae1 {[%emt 0:06:10]} Qc7 {[%emt 0:03:12] Weighted Error Value: White=0.12 (very precise) /Black=0.14 (very precise)} 1-0

[Event "Vezerkepzo GM May 2022"]
[Site "Budapest"]
[Date "2022.05.20"]
[Round "3.3"]
[White "Fule, Simon"]
[Black "Nagy, Gabor"]
[Result "0-1"]
[ECO "B09"]
[WhiteElo "2297"]
[BlackElo "2503"]
[Annotator "TA"]
[PlyCount "35"]
[EventDate "2022.05.18"]
[EventType "tourn"]
[EventCountry "HUN"]
[SourceTitle "playchess.com"]
[Source "ChessBase"]
[SourceQuality "1"]
[TimeControl "5400+30"]

{[%evp 24,35,67,58,94,83,85,73,74,0,0,0,0,-20]} 1. e4 {[%emt 0:00:04]} g6 {[%emt 0:03:47]} 2. d4 {[%emt 0:00:55]} Bg7 {[%emt 0:04:12]} 3. Nc3 {[%emt 0:00:26]} d6 {[%emt 0:00:18]} 4. f4 {[%emt 0:00:17]} Nf6 {[%emt 0:00:09]} 5. Bd3 {[%emt 0:00:16]} O-O {[%emt 0:02:58]} 6. Nf3 {[%emt 0:00:10]} Na6 {[%emt 0:00:42]} 7. O-O {[%emt 0:03:11]} c5 {[%emt 0:00:17]} 8. d5 {[%emt 0:02:26]} Rb8 {[%emt 0:00:17]} 9. Qe2 {[%emt 0:07:24]} Nc7 {[%emt 0:06:55]} 10. a4 {[%emt 0:01:19]} a6 {[%emt 0:02:59]} 11. a5 {[%emt 0:16:24]} Bg4 {[%emt 0:02:43]} 12. h3 {[%emt 0:14:21]} Bxf3 {[%emt 0:00:32]} 13. Qxf3 {[%emt 0:00:28]} ({Much worse is} 13. Rxf3 e6 $11) 13... Nd7 {[%emt 0:00:36] B09: Pirc Defence: Austrian Attack.} 14. Nd1 {[%emt 0:08:30]} e6 {[%emt 0:02:56]} 15. Ne3 {[%emt 0:06:59]} exd5 {[%emt 0:04:40] [#]} 16. Nxd5 $146 {[%emt 0:00:33]} (16. exd5 $16 Qe7 17. c3) ({Predecessor:} 16. exd5 f5 17. g4 fxg4 18. Qxg4 Qe7 19. c3 Rbe8 20. Ra4 Qf7 21. Qg2 b5 22. axb6 Nxb6 {0-1 (36) Vaisser,A (2556)-Hamdouchi,H (2627) Pau 2012}) 16... Nxd5 $11 {[%emt 0:02:50]} 17. exd5 {[%emt 0:00:06]} Qc7 {[%emt 0:01:46]} 18. c3 {[%emt 0:08:59][%mdl 32768] Black took control after the opening.  Weighted Error Value: White=0.23 (precise) /Black=0.08 (flawless) . Loss on time!?} 0-1

[Event "Vezerkepzo GM May 2022"]
[Site "Budapest"]
[Date "2022.05.20"]
[Round "3.4"]
[White "Dudin, Gleb"]
[Black "Pacher, Milan"]
[Result "1-0"]
[ECO "D11"]
[WhiteElo "2473"]
[BlackElo "2394"]
[Annotator "TA"]
[PlyCount "39"]
[EventDate "2022.05.18"]
[EventType "tourn"]
[EventCountry "HUN"]
[SourceTitle "playchess.com"]
[Source "ChessBase"]
[SourceQuality "1"]
[TimeControl "5400+30"]

{[%evp 10,39,16,5,14,14,8,12,9,5,18,19,12,16,13,15,17,0,0,0,0,0,26,25,26,47,31,46,38,33,50,37]} 1. d4 {[%emt 0:08:30]} d5 {[%emt 0:00:02]} 2. Nf3 {[%emt 0:00:52]} Bf5 {[%emt 0:00:06]} 3. e3 {[%emt 0:03:07]} e6 {[%emt 0:00:04]} 4. c4 {[%emt 0:01:44]} c6 {[%emt 0:00:05]} 5. Nc3 {[%emt 0:01:33]} Nd7 {[%emt 0:00:03]} 6. Be2 {[%emt 0:04:45]} h6 {[%emt 0:01:00] D11: Slav Defence: 3 Nf3 sidelines and 3...Nf6 4 e3 Bg4.} 7. Bd3 {[%emt 0:05:31]} Bxd3 {[%emt 0:00:32]} 8. Qxd3 {[%emt 0:00:08]} Ngf6 {[%emt 0:00:05] The position is equal.} 9. O-O {[%emt 0:00:35]} Bd6 {[%emt 0:02:19]} 10. e4 {[%emt 0:07:37]} dxe4 {[%emt 0:02:42]} 11. Nxe4 {[%emt 0:00:18]} Nxe4 {[%emt 0:00:03]} 12. Qxe4 {[%emt 0:00:16]} O-O {[%emt 0:00:05]} 13. Bd2 {[%emt 0:04:35]} e5 {[%emt 0:09:00] [#]} 14. Qf5 $146 {[%emt 0:17:27][%cal Od2h6]} ({Predecessor:} 14. dxe5 Nxe5 15. Nxe5 Bxe5 16. Qxe5 Qxd2 17. Rfe1 Rad8 {½-½ (17) Oetting,H-Bec,D freechess.de 2016}) 14... exd4 {[%emt 0:05:10]} 15. Nxd4 {[%emt 0:03:10]} Nb6 {[%emt 0:02:09]} ({Don't take} 15... Qh4 16. Nf3 Qd8 17. Rad1 $16) 16. Nf3 {[%emt 0:08:48] c5 is the strong threat.} ({Reject} 16. Qg4 Be5 17. Bc3 h5 $15) 16... Nxc4 {[%emt 0:10:46] [#]} 17. Bxh6 {[%emt 0:04:19]} gxh6 {[%emt 0:00:28] White is slightly better.} 18. Qg4+ {[%emt 0:02:49]} Kh8 {[%emt 0:00:03] White must now prevent ...Ne5.} 19. Qxc4 {[%emt 0:00:31] aiming for Qd4+.} Qf6 {[%emt 0:00:03]} 20. Qb3 {[%emt 0:04:17] Weighted Error Value: White=0.03 (flawless) /Black=0.03 (flawless)} (20. g3 $5) 1-0

[Event "Vezerkepzo GM May 2022"]
[Site "Budapest"]
[Date "2022.05.20"]
[Round "3.5"]
[White "Berczes, David"]
[Black "Tancsa, Tamas"]
[Result "1-0"]
[ECO "E94"]
[WhiteElo "2437"]
[BlackElo "2091"]
[Annotator "TA"]
[PlyCount "34"]
[EventDate "2022.05.18"]
[EventType "tourn"]
[EventCountry "HUN"]
[SourceTitle "playchess.com"]
[Source "ChessBase"]
[SourceQuality "1"]
[TimeControl "5400+30"]

{[%evp 18,34,65,18,98,59,52,27,64,56,83,86,70,68,60,43,50,47,66]} 1. d4 {[%emt 0:19:21]} Nf6 {[%emt 0:01:08]} 2. c4 {[%emt 0:00:15]} d6 {[%emt 0:00:32]} 3. Nc3 {[%emt 0:00:21]} Nbd7 {[%emt 0:00:08]} 4. e4 {[%emt 0:00:28]} e5 {[%emt 0:00:04]} 5. Nf3 {[%emt 0:00:03]} g6 {[%emt 0:00:07]} 6. Be2 {[%emt 0:00:03]} Bg7 {[%emt 0:00:05]} 7. O-O {[%emt 0:00:04]} O-O {[%emt 0:00:05]} 8. Qc2 {[%emt 0:00:17]} c6 {[%emt 0:00:09]} 9. Re1 {[%emt 0:09:20]} Qe7 {[%emt 0:07:22]} 10. Be3 {[%emt 0:03:25]} (10. d5 $1 $14) 10... h6 {[%emt 0:05:21] E94: King's Indian: Classical: 6 Be2 e5 7 0-0: Various Black 7th moves.} (10... exd4 $11 11. Nxd4 (11. Bxd4 b6 $11) 11... Re8) 11. h3 {[%emt 0:10:06] White is more active.} exd4 {[%emt 0:03:48]} 12. Bxd4 {[%emt 0:02:44]} Nc5 {[%emt 0:00:56] White has an edge.} 13. Bf1 {[%emt 0:09:07] [#]} Nfd7 $146 {[%emt 0:01:23]} ({Predecessor:} 13... Ne6 14. Be3 Nh5 15. Rad1 g5 16. Qd2 Be5 17. g3 Qf6 18. Bg2 Qg7 19. Qe2 Nf6 {0-1 (59) Leskiewicz,M (2175)-Pizzato,C (2180) Gold Coast 1996}) 14. Bxg7 {[%emt 0:05:38]} Kxg7 {[%emt 0:00:05]} 15. Qd2 {[%emt 0:08:14] White is slightly better.} Ne5 {[%emt 0:15:09]} 16. Nh2 {[%emt 0:01:28]} g5 $1 {[%emt 0:01:20]} 17. Rad1 {[%emt 0:01:16]} Rd8 {[%emt 0:01:42] Weighted Error Value: White=0.15 (very precise) /Black=0.25 (precise)} 1-0

[Event "Vezerkepzo GM May 2022"]
[Site "Budapest"]
[Date "2022.05.20"]
[Round "4.3"]
[White "Nagy, Gabor"]
[Black "Dudin, Gleb"]
[Result "1/2-1/2"]
[ECO "A20"]
[WhiteElo "2503"]
[BlackElo "2473"]
[Annotator "TA"]
[PlyCount "59"]
[EventDate "2022.05.18"]
[EventType "tourn"]
[EventCountry "HUN"]
[SourceTitle "playchess.com"]
[Source "ChessBase"]
[SourceQuality "1"]
[TimeControl "5400+30"]

{[%evp 11,59,16,16,27,12,4,13,0,12,0,0,8,0,14,28,11,40,0,0,0,0,13,0,0,4,6,5,16,0,-20,-36,-38,-15,-42,0,0,0,0,0,-8,0,0,16,23,20,30,20,19,22,13]} 1. c4 {[%emt 0:00:06]} e5 {[%emt 0:05:42]} 2. g3 {[%emt 0:00:54]} Nf6 {[%emt 0:00:32]} 3. Bg2 {[%emt 0:00:00]} d5 {[%emt 0:00:09]} 4. cxd5 {[%emt 0:00:00]} Nxd5 {[%emt 0:00:06]} 5. Nf3 {[%emt 0:00:05]} Nc6 {[%emt 0:00:07]} 6. O-O {[%emt 0:00:15]} Nb6 {[%emt 0:00:20]} 7. b3 {[%emt 0:00:25] A20: English Opening: 1...e5.} f6 {[%emt 0:02:51] 7...Be6 is becoming the main line.} 8. Bb2 {[%emt 0:00:19]} Be6 {[%emt 0:00:31]} 9. Nc3 {[%emt 0:00:53]} (9. d4 $5 {[%cal Rd4e5]}) 9... Qd7 {[%emt 0:01:28]} 10. Rc1 {[%emt 0:00:28]} O-O-O {[%emt 0:00:56]} 11. Qc2 {[%emt 0:00:12]} Kb8 {[%emt 0:01:19]} 12. Rfd1 {[%emt 0:01:18] [#]} Qc8 $146 {[%emt 0:02:28]} ({Predecessor:} 12... Nd4 13. Nxd4 exd4 14. Ne4 d3 15. exd3 h5 16. h4 c6 17. Re1 Bh3 18. d4 Bxg2 19. Kxg2 {½-½ (31) Ding,L (2811)-Nepomniachtchi,I (2776) Chess.com INT 2019}) 13. Ne4 {[%emt 0:01:22]} Bd5 {[%emt 0:02:21]} 14. Qb1 {[%emt 0:04:11]} (14. d4 $5 {[%cal Rd4e5]}) 14... h5 {[%emt 0:08:17]} 15. h4 {[%emt 0:06:03]} Be7 {[%emt 0:07:39]} 16. Nc5 {[%emt 0:02:11]} Bxc5 {[%emt 0:12:12]} 17. Rxc5 {[%emt 0:00:11]} Qg4 {[%emt 0:00:59] Inhibits e4.} 18. d3 {[%emt 0:09:25]} Nd4 {[%emt 0:23:15]} 19. Bxd4 {[%emt 0:02:15]} exd4 {[%emt 0:00:28]} 20. Rd2 {[%emt 0:00:59]} (20. Qc1 $5 {[%cal Rc5c7]}) 20... g5 {[%emt 0:07:47] [#] White must now prevent ...gxh4.} 21. Qf1 {[%emt 0:01:13] Threatens to win with Bh3.} gxh4 {[%emt 0:00:54]} 22. Bh3 $1 {[%emt 0:00:59]} Qg7 {[%emt 0:01:26]} (22... Qg8 $5 {[%cal Rd5f3]} 23. Nxh4 Nd7 $11) 23. Nxh4 {[%emt 0:00:10]} Rhg8 {[%emt 0:00:20] And now ...Qg5 would win.} 24. Rdc2 {[%emt 0:01:44]} c6 {[%emt 0:01:53]} 25. Qc1 {[%emt 0:04:20]} Qc7 {[%emt 0:02:55][%cal Og8g3] Against Qf4} 26. Kh2 {[%emt 0:01:11]} Rg5 {[%emt 0:01:31]} 27. Qf4 {[%emt 0:02:29]} Qxf4 {[%emt 0:01:02]} 28. gxf4 {[%emt 0:00:08]} Rgg8 {[%emt 0:00:18]} 29. Nf5 {[%emt 0:01:03]} Be6 {[%emt 0:01:55]} 30. Nh6 {[%emt 0:04:59][%csl LRe6,LRg8,LRh5] Weighted Error Value: White=0.04 (flawless) /Black=0.06 (flawless)} 1/2-1/2